Workbook

Sheet 제휴 과목 할인가
A2: [2024학년도 대학 제휴 할인]
A4: 과목 | B4: 강사 | C4: 할인률 | D4: 강의명 | E4: 판매가 | F4: 제휴 할인가 | G4: 과목 | H4: 강사 | I4: 할인률 | J4: 강의명 | K4: 판매가 | L4: 제휴 할인가
A5: 교육학 | B5: 윤승현 | C5: 0.5 | D5: 2024 윤승현 2-7월 알즐교육학 80강 완성 패키지 | E5: 400000 | F5: =E5-E5*C5 -> 200000 | G5: 음악 | H5: 이미정 | I5: 0.2 | J5: 음악 1~2월 기본이론반 | K5: 380000 | L5: =K5-K5*I5 -> 304000
B6: 한이수 | C6: 0.3 | D6: 수(秀) 교육학 1~2월 기초 이론반 | E6: 340000 | F6: 238000 | I6: 0.2 | J6: 음악 1~2월 화성학 1단계 | K6: 360000 | L6: 288000
C7: 0.3 | D7: 수(秀) 교육학 3~4월 심화 이론반 | E7: 340000 | F7: 238000 | I7: 0.2 | J7: 음악 3~6월 심화이론반 | K7: 660000 | L7: 528000
C8: 0.3 | D8: 수(秀) 교육학 5~6월 기출분석과 이론 굳히기반 | E8: 340000 | F8: =E8-E8*C8 -> 238000 | I8: 0.2 | J8: 음악 7~9월 영역별 문제풀이반 | K8: 580000 | L8: 464000
C9: 0.3 | D9: 수(秀) 교육학 7~8월 영역별 문제풀이반 | E9: 340000 | F9: =E9-E9*C9 -> 238000 | I9: 0.2 | J9: 음악 10~11월 모의고사반_개강 예정 | K9: 9월 3주차 안내 예정
C10: 0.2 | D10: 수(秀) 교육학 9~11월 실전 모의고사반 | E10: 390000 | F10: 312000 | I10: 0.1 | J10: 2024 음악 이미정 하반기 패키지 | K10: 1000000 | L10: 900000
C11: 0.2 | D11: [패키지] 2024 한이수 교육학 하반기 패키지 | E11: 620000 | F11: 496000 | I11: 0.1 | J11: 2024 음악 이미정 1~2월 패키지 | K11: 666000 | L11: =K11-K11*I11 -> 599400
C12: 0.2 | D12: 2024 한이수 교육학 연간 패키지 | E12: 1225000 | F12: =E12-E12*C12 -> 980000 | I12: 0.1 | J12: 2024 음악 이미정 3~11월 패키지 | K12: 1648000 | L12: 1483200
C13: 0.2 | D13: 2024 한이수 교육학 3~10월 패키지 | E13: 1128000 | F13: =E13-E13*C13 -> 902400 | I13: 0.1 | J13: 2024 음악 이미정 연간 패키지 | K13: 1960000 | L13: 1764000
A14: 영어 | B14: 조셉신 | C14: 0.3 | D14: 전공영어 입력 1단계 | E14: 430000 | F14: =E14-E14*C14 -> 301000 | H14: 김남주 (화성학) | I14: 0.5 | J14: [화성학 2단계-1] 기초화성 꼼꼼반 | K14: 190000 | L14: 95000
C15: 0.3 | D15: 전공영어 입력 2단계 | E15: 430000 | F15: =E15-E15*C15 -> 301000 | I15: 0.5 | J15: [화성학 2단계-2] 고급화성 꼼꼼반 | K15: 250000 | L15: 125000
C16: 0.3 | D16: 전공영어 입력 3단계 | E16: 430000 | F16: =E16-E16*C16 -> 301000 | I16: 0.4 | J16: [화성학 3단계] 화성문제풀이반 | K16: 250000 | L16: 150000
C17: 0.2 | D17: 전공영어 출력 1단계_교정형 모의고사 | E17: 450000 | F17: 360000 | I17: 0.4 | J17: 2024 김남주 화성학 패키지 | K17: 552000 | L17: 331200
C18: 0.2 | D18: 전공영어 출력 2단계_실전 모의고사 | E18: 620000 | F18: 496000 | H18: 김남주(청음) | I18: 0.4 | J18: 김남주 청음 초급반 | K18: 160000 | L18: 96000
C19: 0.1 | D19: 2024 영어 조셉신 하반기 패키지 | E19: 909000 | F19: 818100 | I19: 0.4 | J19: 김남주 청음 중급반 | K19: 160000 | L19: 96000
C20: 0.1 | D20: 2024 영어 조셉신 상반기 패키지 | E20: 1096000 | F20: =E20-E20*C20 -> 986400 | G20: 체육 | H20: 김형규 | I20: 0.3 | J20: 체육 1~2월 이론총정리반(체육과 교육학) | K20: 320000 | L20: =K20-(K20*I20) -> 224000
C21: 0.1 | D21: 2024 영어 조셉신 3~11월 패키지 | E21: 1640000 | F21: =E21-E21*C21 -> 1476000 | I21: 0.3 | J21: 체육 3~4월 이론총정리반(체육과 내용학) | K21: 380000 | L21: =K21-(K21*I21) -> 266000
C22: 0.1 | D22: 2024 영어 조셉신 연간 패키지 | E22: 1888000 | F22: =E22-E22*C22 -> 1699200 | I22: 0.3 | J22: 체육 5~6월 기출문제분석반 | K22: 360000 | L22: =K22-(K22*I22) -> 252000
B23: 최시원 김수아 최진호 전공영어팀 | C23: 0.3 | D23: 23년 영어 최시원팀 1~2월 패키지 | E23: 400000 | F23: =E23-E23*C23 -> 280000 | I23: 0.2 | J23: 체육 7~8월 영역별 문제풀이반 | K23: 380000 | L23: 304000
C24: 0.3 | D24: 23년 영어 최시원팀 3~4월 패키지 | E24: 450000 | F24: =E24-E24*C24 -> 315000 | I24: 0.2 | J24: 체육 9~11월 실전 모의고사반 | K24: 420000 | L24: =K24-(K24*I24) -> 336000
C25: 0.3 | D25: 23년 영어 최시원팀 5~6월 패키지 | E25: 450000 | F25: =E25-E25*C25 -> 315000 | I25: 0.1 | J25: 2024 체육 김형규 하반기 패키지 | K25: 720000 | L25: =K25-(K25*I25) -> 648000
C26: 0.2 | D26: 7~8월 최시원김수아최진호팀 모의고사반 | E26: 500000 | F26: 400000 | I26: 0.1 | J26: 2024 체육 김형규 1~4월 이론 총정리 패키지 | K26: 600000 | L26: 540000
C27: 0.2 | D27: 9~11월 최시원김수아최진호팀 실전 모의고사반 | E27: 650000 | F27: 520000 | I27: 0.1 | J27: 2024 체육 김형규 5~11월 패키지 | K27: 986000 | L27: =K27-(K27*I27) -> 887400
C28: 0.1 | D28: 23년 영어 최시원김수아최진호팀 하반기 패키지 | E28: 980000 | F28: 882000 | I28: 0.1 | J28: 2024 체육 김형규 연간 패키지 | K28: 1488000 | L28: =K28-(K28*I28) -> 1339200
C29: 0.1 | D29: 23년 영어 최시원김수아최진호팀 상반기패키지 | E29: 1170000 | F29: =E29-E29*C29 -> 1053000 | G29: 미술 | H29: 장동익 | I29: 0.3 | J29: 미술 1~2월 기초 마인드맵 뼈대 세우기반 | K29: 360000 | L29: =K29-K29*I29 -> 252000
C30: 0.1 | D30: 23년 영어 최시원김수아최진호팀 3~11월 패키지 | E30: 1742000 | F30: =E30-E30*C30 -> 1567800 | I30: 0.3 | J30: 미술 3~4월 심화 뿌리뽑기(되새김 쓰기)반 | K30: 420000 | L30: =K30-K30*I30 -> 294000
C31: 0.1 | D31: 23년 영어 최시원김수아최진호팀 연간패키지 | E31: 1960000 | F31: =E31-E31*C31 -> 1764000 | I31: 0.3 | J31: 미술 5~6월 [역대 객관식+주관식] 팩트 적중! 기출분석 | K31: 350000 | L31: 245000
A32: 특수 | B32: 최한솔 | C32: 0.4 | D32: 1~2월 중등특수 기본이론반 | E32: 390000 | F32: 234000 | I32: 0.3 | J32: 미술 5~6월 테마별 핵심 30여종 필독서 강해 | K32: 360000 | L32: 252000
C33: 0.4 | D33: 1~2월 초등특수 기본이론반 | E33: 390000 | F33: 234000 | I33: 0.3 | J33: 미술 7~8월 단원별 개별 첨삭 구조화 문제풀이 | K33: 380000 | L33: 266000
C34: 0.4 | D34: 3~4월 중등특수 영역별 기출분석반1 | E34: 350000 | F34: 210000 | I34: 0.3 | J34: 미술 9~11월 실전 모의고사반 | K34: 450000 | L34: 315000
C35: 0.4 | D35: 3~4월 초등특수 영역별 기출분석반1 | E35: 350000 | F35: 210000 | I35: 0.2 | J35: 2024 미술 장동익 하반기 패키지 | K35: 927000 | L35: 741600
C36: 0.4 | D36: 5~6월 중등특수 영역별 기출분석반2 | E36: 350000 | F36: 210000 | I36: 0.2 | J36: [패키지] 2024 미술 장동익 5~6월 패키지 | K36: 639000 | L36: 511200
C37: 0.4 | D37: 5~6월 초등특수 영역별 기출분석반2 | E37: 350000 | F37: 210000 | I37: 0.2 | J37: 2024 미술 장동익 3~11월 패키지 | K37: 1836000 | L37: 1468800
C38: 0.3 | D38: 7~8월 특수 영역별 문제풀이반 | E38: 430000 | F38: 301000 | I38: 0.2 | J38: 2024 미술 장동익 연간 패키지 | K38: 2016000 | L38: 1612800
C39: 0.3 | D39: 9~11월 초등특수 최종 모의고사반 | E39: 380000 | F39: 266000 | G39: 전문상담 | H39: 루시아 | I39: 0.2 | J39: 1~2월 전문상담 종합이론I | K39: 340000 | L39: =K39-(K39*I39) -> 272000
C40: 0.3 | D40: 9~11월 중등특수 최종 모의고사반 | E40: 380000 | F40: 266000 | I40: 0.2 | J40: 3~4월 전문상담 종합이론II | K40: 340000 | L40: 272000
C41: 0.2 | D41: 초특/중특 7~11월 하반기 패키지 | E41: 690000 | F41: 552000 | I41: 0.2 | J41: 5~6월 전문상담 종합이론III | K41: 340000 | L41: 272000
C42: 0.4 | D42: 2024 중특 최한솔 3~6월 기출 패키지 | E42: 630000 | F42: 378000 | I42: 0.2 | J42: 7~8월 전문상담 과목별 문제풀이반 | K42: 340000 | L42: 272000
C43: 0.4 | D43: 2024 초특 최한솔 3~6월 기출 패키지 | E43: 630000 | F43: 378000 | I43: 0.2 | J43: 9~11월 전문상담 실전모의고사반 | K43: 400000 | L43: 320000
C44: 0.2 | D44: 2024 중특 최한솔 3~11월 패키지 | E44: 1280000 | F44: 1024000 | I44: 0.1 | J44: 2024 전문상담 루시아 하반기 패키지 | K44: 690000 | L44: 621000
C45: 0.2 | D45: 2024 초특 최한솔 3~11월 패키지 | E45: 1280000 | F45: 1024000 | I45: 0.1 | J45: 2024 전문상담 루시아 상반기 패키지(이론) | K45: 860000 | L45: =K45-(K45*I45) -> 774000
C46: 0.2 | D46: 2024 중특 최한솔 연간 패키지 | E46: 1520000 | F46: =E46-E46*C46 -> 1216000 | I46: 0.1 | J46: 2024 전문상담 루시아 연간패키지 | K46: 1450000 | L46: =K46-(K46*I46) -> 1305000
C47: 0.2 | D47: 2024 초특 최한솔 연간 패키지 | E47: 1520000 | F47: 1216000 | G47: 지구과학 | H47: 방정훈 | I47: 0.5 | J47: [지구과학ll] 2024 개념+기출분석 완성반(쌩기초) | K47: 240000 | L47: =K47-(K47*I47) -> 120000
C48: 0.2 | D48: 2024 초특 최한솔 연간 패키지 | E48: 1520000 | F48: =E48-E48*C48 -> 1216000
A49: 정보컴퓨터 | B49: 스티브 | C49: 0.4 | D49: 정보컴퓨터 1~4월 기본서 완전정복반 | E49: 1000000 | F49: =E49-(E49*C49) -> 600000
C50: 0.4 | D50: 정보컴퓨터 5~6월 기본 문제풀이반 | E50: 500000 | F50: 300000
C51: 0.3 | D51: 정보컴퓨터 7~8월 문제풀이반 II | E51: 500000 | F51: 350000
C52: 0.3 | D52: 정보컴퓨터 9~11월 통합 실전 모의고사반 | E52: 600000 | F52: 420000
C53: 0.2 | D53: 2024 정보컴퓨터 스티브 7~11월 패키지 | E53: 990000 | F53: 792000
C54: 0.2 | D54: 2024 정보컴퓨터 스티브 5~11월 패키지 | E54: 1140000 | F54: 912000
C55: 0.2 | D55: 2024 정보컴퓨터 스티브 연간 패키지 | E55: 2210000 | F55: 1768000

Sheet 취합 양식
A1: 신청자 정보 | E1: 강의정보 | L1: 추가요청(무통장 입금시 작성)
A2: 학번 | B2: ID | C2: 이름 | D2: 연락처 | E2: 인/직강 | F2: 강사 | G2: 신청강의 | H2: 결제방법 | I2: 판매가 | J2: 할인율 | K2: 할인가 | L2: 소득공제용 번호 | M2: 비고
A3: 3215844 | B3: imyong | C3: 임용 | D3: 010-1111-2222 | E3: 인강 | F3: 김형규 | G3: 2024 전공체육 연간패키지 | H3: 카드 | I3: 1288000 | J3: 0.1 | K3: =I3-I3*J3 -> 1159200 | L3: 010-4444-5555 | M3: 예시
K5: =I5-I5*J5 -> 0
K6: 0
A8: * 취합 담당자분께서는 위 양식에 맞게 취합 부탁드립니다. * 강의 신청 수요에 따라 주단위, 혹은 일단위로 편의에 맞게 전달(imyonggosi@naver.com) 부탁드립니다. * 결제는 할인가 기준으로 이루어지며 결제 방법은 무통장(입금), 카드(쿠폰지급) 2가지 이며 신청하신 방법에 따라 각각 문자로 안내드립니다. * 무통장 입금 후 현금영수증 발급을 원하시는 경우 상단 항목 중 '추가요청'란 기입 부탁드립니다.
